Cogmind - Beta 10.2 @@@ ROGUE MODE // 2021.04.04 @ 13:03:54 Player: gammafunk Result: Destroyed by S-10 Pest with Light Assault Rifle Performance ------------- Evolutions (0) 0 Regions Visited (2) 400 Robots Destroyed (27) 135 Value Destroyed (553) 553 Prototype IDs (3) 60 Alien Tech Used (0) 0 Bonus (0) 0 TOTAL SCORE: 1148 Bonus ------- None Cogmind --------- Core Integrity 0/250 Matter 177/300 Energy 250/250 System Corruption 0% Temperature Cool (0) Movement Treading (160) Location -10/Mines Parts ------- > --- POWER (1) -------- Ion Engine > --- PROPULSION (2) --- Light Treads Light Treads > --- UTILITY (2) ------ High-capacity Storage Unit > --- WEAPON (2) ------- Grenade Launcher > --- INVENTORY (12) --- Ion Engine Light Ion Engine Light Ion Engine Light Treads Light Treads Light Treads High-capacity Storage Unit Large Matter Pod (0) Signal Interpreter Light Assault Rifle Grenade Launcher Mace Peak State ------------ > --- POWER ------------ Ion Engine > --- PROPULSION ------- Light Treads Light Treads > --- UTILITY ---------- High-capacity Storage Unit Targeting Computer > --- WEAPON ----------- Assault Rifle Mace > --- INVENTORY -------- Ion Engine Light Ion Engine Light Treads High-capacity Storage Unit Signal Interpreter Light Assault Rifle Light Assault Rifle Light Assault Rifle Grenade Launcher Grenade Launcher [Rating: 9] Favorites ----------- Power Ion Engine Engine Ion Engine Propulsion Light Treads Treads Light Treads Utility High-capacity Storage Unit Storage High-capacity Storage Unit Processor Targeting Computer Weapon Light Assault Rifle Energy Gun Medium Laser Ballistic Gun Light Assault Rifle Launcher Grenade Launcher Impact Weapon Mace Build | -11 -10 -10 ------- Run | Scr Mat Min Slots Evolved . | . . . Power . | . . . Propulsion . | . . . Utility . | . . . Weapon . | . . . Parts Attached 40 | 7 33 . Power 9 | 1 8 . Engine 9 | 1 8 . Core . | . . . Reactor . | . . . Propulsion 11 | 2 9 . Treads 11 | 2 9 . Leg . | . . . Wheel . | . . . Hover . | . . . Flight . | . . . Utility 4 | 2 2 . Device . | . . . Storage 3 | 2 1 . Processor 1 | . 1 . Hackware . | . . . Protection . | . . . Artifact . | . . . Weapon 16 | 2 14 . Energy Gun 3 | 2 1 . Energy Cannon . | . . . Ballistic Gun 10 | . 10 . Ballistic Cannon . | . . . Launcher 1 | . 1 . Special Weapon . | . . . Impact Weapon 2 | . 2 . Slashing Weapon . | . . . Piercing Weapon . | . . . Special Melee Weapon . | . . . Unidentified Prototypes . | . . . Parts Lost 4 | . 3 1 Power . | . . . Propulsion . | . . . Utility . | . . . Weapon 4 | . 3 1 Highest Loss Streak 1 | . 1 1 Average Slot Usage (%) 92 | . 93 85 Engine 13 | . 13 14 Treads 27 | . 27 28 Storage 17 | . 17 14 Processor 4 | . 4 . Energy Gun 2 | . 2 . Ballistic Gun 23 | . 25 14 Launcher 1 | . . 14 Naked Turns . | . . . Heaviest Build 41 | 15 41 41 Greatest Support 40 | 40 40 40 Greatest Overweight (x) 11 | . 11 1 Average Overweight (x) . | . . 1 Largest Inventory Capacity 12 | 8 12 12 Average Capacity 10 | 5 10 12 Most Carried 12 | 2 12 12 Average Carried 8 | 1 8 12 Final Capacity 12 | 8 12 12 Final Carried 12 | 2 12 12 Class Distribution -------------------- 95% | Mutant 4% | Scavenger-Mutant Dominant Class ---------------- Mutant | -10/Materials Mutant | -10/Mines Resources | -11 -10 -10 ----------- Run | Scr Mat Min Matter Collected 737 | 270 460 7 Remotely . | . . . Salvage Created 804 | 85 632 87 Parts 61 | 4 49 8 Haulers Intercepted 2 | . 2 . Recyclers Shooed . | . . . Parts Field Recycled . | . . . Retrieved Matter . | . . . Parts Self-Destructed . | . . . Prevented . | . . . Kills | -11 -10 -10 ------- Run | Scr Mat Min Combat Hostiles Destroyed 20 | . 14 6 Guns 14 | . 14 . AOE 6 | . . 6 Classes Destroyed 6 | 1 4 1 Builder 1 | . . 1 Hauler 2 | . 2 . Recycler 2 | 1 1 . Watcher 2 | . 2 . Swarmer 9 | . 5 4 Grunt 11 | . 9 2 Best Kill Streak 5 | 1 3 5 Combat Bots Only 5 | . 3 5 Max Kills in Single Turn 2 | 1 2 2 Gunslinging 1 | . 1 . Exploded 2 | . . 2 Melee . | . . . Uniques/NPCs Destroyed . | . . . Combat | -11 -10 -10 -------- Run | Scr Mat Min Damage Taken 927 | . 821 106 Core 252 | . 231 21 Absorbed by Shields . | . . . Core Remaining (%) 100 | 100 . . Volleys Fired 86 | 5 73 8 Largest 2 | 2 2 1 Hottest 100 | 90 100 30 Shots Fired 160 | 7 145 8 Gun 152 | 7 145 . Cannon . | . . . Launcher 8 | . . 8 Special . | . . . Kinetic 133 | . 133 . Thermal 11 | 2 9 . Explosive 8 | . . 8 Electromagnetic 8 | 5 3 . Robot Hit Streak 14 | 3 14 6 Robot Miss Streak 4 | 1 4 . Penetration Max . | . . . Secondary Targets 2 | . 2 . Max Gunslinging Chain 1 | . 1 . Shots Hit Robots 114 | 4 105 5 Core Hits 49 | 2 36 11 Critical Hits 3 | . 3 . Critical Kills 1 | . 1 . Critical Parts Destroyed 2 | . 2 . Melee Attacks 3 | . 3 . Impact 3 | . 3 . Slashing . | . . . Piercing . | . . . Sneak Attacks . | . . . Combat Hostiles . | . . . Follow-up Attacks . | . . . Damage Inflicted 1524 | 56 990 478 Guns 1035 | 55 980 . Cannons . | . . . Explosions 471 | . . 471 Melee . | . . . Ramming 18 | 1 10 7 Kinetic 928 | . 928 . Thermal 64 | 12 52 . Explosive 471 | . . 471 Electromagnetic 43 | 43 . . Impact . | . . . Slashing . | . . . Piercing . | . . . Highest Corruption . | . . . Average Corruption . | . . . Corruption Purged . | . . . Overload Shots . | . . . Overflow Damage 5 | . . 5 Projectiles . | . . . Explosions 5 | . . 5 Melee . | . . . Knockbacks 1 | . 1 . Impact 1 | . 1 . Kinetic . | . . . Secondary . | . . . Self-Inflicted Damage . | . . . Shots . | . . . Rammed 5 | 1 2 2 Targets Rammed 5 | 1 2 2 Kicked . | . . . Crushed . | . . . Highest Temperature 187 | 60 187 4 Average Temperature 34 | 42 34 4 Received Heat Transfer 396 | . 354 42 Siege Activations . | . . . Robots Corrupted . | . . . Combat Hostiles . | . . . Parts Fried . | . . . Impact Corruptions . | . . . Robots Melted . | . . . Combat Hostiles . | . . . Parts Melted . | . . . Heat Transferred 185 | 37 148 . Parts Sabotaged . | . . . Parts Stolen . | . . . Parts Stripped . | . . . Power Chain Reactions . | . . . Missiles Intercepted . | . . . Alert | -11 -10 -10 ------- Run | Scr Mat Min Peak Influence 184 | 5 184 145 Initial 3 | . 3 . Average 51 | 1 44 116 Maximum Alert Level . | . . . Low Security (%) 100 | 100 100 100 Level 1 . | . . . Level 2 . | . . . Level 3 . | . . . Level 4 . | . . . Level 5 . | . . . High Security . | . . . Max Security . | . . . Squads Dispatched 2 | . 2 . Investigation 2 | . 2 . Extermination . | . . . Reinforcement . | . . . Assault . | . . . Garrison . | . . . Intercept . | . . . Construction Impeded . | . . . Haulers Reinforced . | . . . Stealth | -11 -10 -10 --------- Run | Scr Mat Min Distress Signals . | . . . Communications Jammed . | . . . Distress Signals . | . . . Times Spotted 26 | . 19 7 Peak Tracking Total 3 | . 3 3 Tactical Retreats . | . . . Traps | -11 -10 -10 ------- Run | Scr Mat Min Traps Triggered 6 | . 6 . Indirectly . | . . . Trap Hack Attempts . | . . . Triggered . | . . . Disarmed . | . . . Reprogrammed . | . . . Reused . | . . . Traps Extracted . | . . . Installed . | . . . Triggered . | . . . Machines | -11 -10 -10 ---------- Run | Scr Mat Min Machines Disabled 1 | . 1 . Max in Single Turn 1 | . 1 . Machines Sabotaged . | . . . Garrisons Compromised . | . . . Overloaded Fab Kills . | . . . Fab Network Shutdowns . | . . . Hacking | -11 -10 -10 --------- Run | Scr Mat Min Machines Accessed 9 | . 9 . Terminals 6 | . 6 . Fabricators . | . . . Repair Stations 1 | . 1 . Recycling Units 2 | . 2 . Scanalyzers . | . . . Garrison Access . | . . . Total Hacks 26 | . 26 . Successful 16 | . 16 . Failed 9 | . 9 . Catastrophic . | . . . Database Lockouts 1 | . 1 . Manual 12 | . 12 . Terminals 20 | . 20 . Fabricators . | . . . Repair Stations 2 | . 2 . Recycling Units 4 | . 4 . Scanalyzers . | . . . Garrison Access . | . . . Terminal Hacks 8 | . 8 . Robot Analysis 1 | . 1 . Prototype ID Bank 2 | . 2 . Machine Index 1 | . 1 . Terminal Index 1 | . 1 . Unreport Threat 2 | . 2 . Hauler Manifests 1 | . 1 . Fabricator Hacks . | . . . Repair Station Hacks 2 | . 2 . Scan Component 1 | . 1 . Repair 1 | . 1 . Recycling Unit Hacks 2 | . 2 . Retrieve Components 2 | . 2 . Scanalyzer . | . . . Garrison Access Hacks . | . . . Unauthorized Hacks 4 | . 4 . Terminals 4 | . 4 . Botnet 4 | . 4 . Fabricators . | . . . Repair Stations . | . . . Recycling Units . | . . . Scanalyzers . | . . . Garrison Access . | . . . Data Cores Recovered . | . . . Used . | . . . Hacking Detections 8 | . 8 . Full Trace Events 1 | . 1 . Feedback Events . | . . . Feedback Blocked . | . . . Robot Schematics Acquired . | . . . Robots Built . | . . . Matter . | . . . Time . | . . . Total Robot Build Rating . | . . . Part Schematics Acquired . | . . . Parts Built . | . . . Matter . | . . . Time . | . . . Total Part Build Rating . | . . . Parts Repaired 1 | . 1 . Time 26 | . 26 . Parts Recycled . | . . . Recycled Matter . | . . . Retrieved Matter . | . . . Retrieved Components 20 | . 20 . Parts Scanalyzed . | . . . Part Schematics Acquired . | . . . Parts Damaged . | . . . Bothacking | -11 -10 -10 ------------ Run | Scr Mat Min Used RIF Installer . | . . . Robots Hacked . | . . . Non-combat . | . . . Combat . | . . . Robot Hacks Applied . | . . . Relay Couplers Released . | . . . Robots Rewired . | . . . Allies Hacked . | . . . Hacks Repelled . | . . . Allies | -11 -10 -10 -------- Run | Scr Mat Min Total Allies . | . . . Largest Group . | . . . Highest-Rated Group . | . . . Highest-Rated Ally . | . . . Total Orders . | . . . Ally Attacks . | . . . Total Damage . | . . . Kills . | . . . Allies Corrupted . | . . . Allies Melted . | . . . Intel | -11 -10 -10 ------- Run | Scr Mat Min Robot Analysis Total 1 | . 1 . Derelict Logs Recovered . | . . . Drone Launches . | . . . Drone Recoveries . | . . . Exploration | -11 -10 -10 ------------- Run | Scr Mat Min Turns Passed 2084 | 101 1742 241 Spaces Moved 1061 | 53 885 123 Core 9 | 8 1 . Treads 1052 | 45 884 123 Legs . | . . . Wheels . | . . . Hover . | . . . Flight . | . . . Fastest Speed 50 | 50 160 180 Average Speed 162 | 143 160 180 Slowest Speed 600 | 160 600 180 Overloaded Moves . | . . . Propulsion Burnouts . | . . . Robots Hopped . | . . . Cave-ins Triggered . | . . . Exploration Rate (%) 45 | 5 93 39 Regions Visited 2 Branch Regions 1 Pre-discovered Areas . | . . . Known Exits Taken . | . . . Unknown Exits Taken 2 | 1 1 . Scrap Searched . | . . . Spaces Dug 2 | . 2 . Terrain Destroyed 43 | . 2 41 Melee 2 | . 2 . Projectile . | . . . AOE 41 | . . 41 Terrain Rammed . | . . . Walls Destroyed . | . . . Machines Disabled . | . . . Actions | -11 -10 -10 --------- Run | Scr Mat Min Total 1266 | 67 1066 133 Wait 50 | . 50 . Move 1060 | 53 884 123 Hop . | . . . Pick Up 13 | 2 11 . Fast Attach 16 | 7 9 . Attach 3 | . 3 . Detach . | . . . Swap 21 | . 21 . Drop 10 | . 10 . Fire 86 | 5 73 8 Melee 3 | . 3 . Ram . | . . . Kick . | . . . Crush 4 | . 2 2 Escape Stasis . | . . . Rewire . | . . . Trap . | . . . Miscellaneous . | . . . Route ------- -11/Scrapyard -10/Materials (discovered 4 exits: [*Mat x3] / [*Min]) -10/Mines History --------- Turn | Location | Event 4 | -11/Scrapyard | Discovered new exit (range 15) 102 | -11/Scrapyard | Entered Materials 677 | -10/Materials | Build established: Mutant 826 | -10/Materials | Discovered new exit (range 10) 970 | -10/Materials | Discovered new exit (range 15) 1167 | -10/Materials | Central database locked down 1179 | -10/Materials | Discovered new exit (range 12) 1217 | -10/Materials | Core integrity fell below 50% 1266 | -10/Materials | Core integrity fell below 20% 1480 | -10/Materials | Discovered new exit (range 8) 1726 | -10/Materials | Repaired Lgt. Treads 1844 | -10/Materials | Entered Mines 2085 | -10/Mines | Destroyed by S-10 Pest with Light Assault Rifle Last Messages --------------- Repairing Lgt. Treads... ETC: 26 Repair station completes Lgt. Treads repairs. K-01 Serf cleans the Machine. LOCATION=UNKNOWN GOAL=ESCAPE Something is scanning the area. G-34 Mercenary destroyed. S-10 Pest destroyed. The unstable cave ceiling collapses. S-10 Pest destroyed. The unstable cave ceiling collapses. G-47 Trooper destroyed. The unstable cave ceiling collapses. Acquired 7 matter. The unstable cave ceiling collapses. Slammed into T-07 Excavator. K-01 Serf collects debris. U-05 Engineer destroyed. Lgt. Assault Rifle destroyed. Map ----- +----------------------------------------------------+ | ?????????????????????????# # ???????????? | | ?????????????????????????# * """???????????? | | ???????###############??## ""????????????? | | ???????# #??# ??????????????? | | ???????# ########### #??# # # #???????????????? | | ???????# #?????????# #??# ##???????????????? | | ???????# #?????????# #### * #???????????????? | | ???????# #?????????# ## #???????????????? | | ???????# #?????????# ## #???????????????? | | ???????# #?????????# ## # #???????????????? | | ???????# #?????????# ## ## #???????????????? | | ???????# ######????# ## ## #???????????????? | | ??????## ##???# ## ## ######???????????????? | | ??????# ##??# ## ## #????????????????????? | | ??????# #??# ## #????????????????????? | | ??????## ## #??#### ## ????????????????????? | | ???????# #?# ##?????# #####????????????????????? | | ???????# #??###?????## ????????????? ??????????? | | ???????# #??????????# #?????????? ??????????? | | ######## #??????????# ##????????? ?????????? | | #?????####?# k##??????? ?????????? | | #????## ### ##????? ?????????? | | ##########?#### ## ##??? ????????? | | ##????????## ##? s #??????????? | | ##??????## # #???????????? | | ##?????# """ @ !%! #???????????? | | ###???# """ t #???????????? | | ##??# """ #### ###???????????? | | ## ##?# ###?????? #?????????????? | | ?# #?## ## ##???????????????????????? | | ## #??## ### #????????????????????????? | | """ ##???# #?## ##???????????????????????? | | """ #????# #??### #???????????????????????? | | """ ##???# #????## #???????????????????????? | | ##??# #?????## ##???????????????????????? | | # #??# #??????# #????????????????????????? | | # #### #??????# #????????????????????????? | | # #??????? #????????????????????????? | | ## #??????? #????????????????????????? | | ?##### #########??????? ????????????????????????? | | ?????# #???????????????##????????????????????????? | | ?????# #?????????????????????????????????????????? | | ?????# ##########????????????????????????????????? | | ?????# #????????????????????????????????? | | ?????######### #????????????????????????????????? | | ?????????????????????????????????????????????????? | | ?????????????????????????????????????????????????? | | ?????????????????????????????????????????????????? | | ?????????????????????????????????????????????????? | | ?????????????????????????????????????????????????? | +----------------------------------------------------+ Best States ------------- Heat Dissipation 25 Energy Generation 10 Energy Capacity 250 Matter Stores 300 Matter Capacity 300 Sight Range 16 Terrain Scan Density 10 Evasion (%) 40 Targeting Accuracy 5 Recoil Reduction 2 Item Schematics ----------------- None Robot Schematics ------------------ None Fabricated ------------ Nothing Alien Tech Used ----------------- None Achievements -------------- None Challenges ------------ None Game ------ Seed PhaseHeavyBarrier Manual? 0 Play Time 00:11:24 Cumulative 112.7 hours Start 2021.04.04 @ 12:53:27 End 2021.04.04 @ 13:03:54 Sessions 1 Manual Loads 0 Difficulty Rogue Special Mode None Game No. 54 Rogue 54 Adventurer 0 Explorer 0 Win Type - Total 2 Types 1/0/1/0/0/0/0/0/0 Lore% 50 Gallery% 51 Achievement% 51 Wizard Run 0 Options --------- ASCII 0 Keyboard 1 Movement Vi Keybinds 0 Fullscreen 2 Font 12/Smallcaps Map View 60x54 Tactical HUD 0 Map Filters NONE Filters NONE Steam 1 RUN: b34ea31d-bf04-4885-b7d6-14a655c10a56